[Event "Titled Tuesday Blitz May 10 Early 2022"]
[White "Juhasz, Agoston"]
[Black "Zherebtsova, Alexandra"]
[WhiteFideId "778346"]
[BlackFideId "24129518"]
[WhiteElo "2211"]
[BlackElo "2025"]
[Result "1-0"]
[Round "07"]
[TimeControl "180+1"]
[Date "2022.05.11"]
[WhiteClock "0:00:56"]
[BlackClock "0:00:17"]

1. d4 {[%clk 0:02:57]}  d5 {[%clk 0:02:49]} 2. Nf3 {[%clk 0:02:55]}  Nf6 {[%clk 0:02:48]} 3. c4 {[%clk 0:02:56]}  e6 {[%clk 0:02:47]} 4. g3 {[%clk 0:02:55]}  g6 {[%clk 0:02:46]} 5. Bg2 {[%clk 0:02:54]}  Bg7 {[%clk 0:02:47]} 6. O-O {[%clk 0:02:55]}  O-O {[%clk 0:02:47]} 7. Nc3 {[%clk 0:02:55]}  Nc6 {[%clk 0:02:46]} 8. Qc2 {[%clk 0:02:46]}  Qe7 {[%clk 0:02:41]} 9. Rd1 {[%clk 0:02:46]}  Rd8 {[%clk 0:02:40]} 10. e4 {[%clk 0:02:36]}  dxc4 {[%clk 0:02:04]} 11. e5 {[%clk 0:02:26]}  Nd5 {[%clk 0:01:55]} 12. Ne4 {[%clk 0:02:26]}  f5 {[%clk 0:01:46]} 13. Bg5 {[%clk 0:02:04]}  Qf8 {[%clk 0:01:26]} 14. Nc5 {[%clk 0:02:01]}  Re8 {[%clk 0:01:20]} 15. Qxc4 {[%clk 0:01:58]}  h6 {[%clk 0:01:19]} 16. Bd2 {[%clk 0:01:57]}  Qe7 {[%clk 0:00:59]} 17. Bc3 {[%clk 0:01:49]}  b6 {[%clk 0:00:47]} 18. Nd3 {[%clk 0:01:40]}  Na5 {[%clk 0:00:28]} 19. Bxa5 {[%clk 0:01:35]}  bxa5 {[%clk 0:00:26]} 20. Nh4 {[%clk 0:01:19]}  Bb7 {[%clk 0:00:24]} 21. Nxg6 {[%clk 0:01:17]}  Qf7 {[%clk 0:00:24]} 22. Ngf4 {[%clk 0:01:15]}  Nxf4 {[%clk 0:00:21]} 23. Nxf4 {[%clk 0:01:06]}  Bxg2 {[%clk 0:00:21]} 24. Kxg2 {[%clk 0:01:07]}  Rab8 {[%clk 0:00:21]} 25. b3 {[%clk 0:01:07]}  Qd7 {[%clk 0:00:19]} 26. Rac1 {[%clk 0:01:06]}  Rb7 {[%clk 0:00:18]} 27. Qc6 {[%clk 0:01:06]}  Qxc6+ {[%clk 0:00:17]} 28. Rxc6 {[%clk 0:01:06]}  Kf7 {[%clk 0:00:18]} 29. Rdc1 {[%clk 0:01:00]}  Re7 {[%clk 0:00:17]} 30. Nd3 {[%clk 0:00:56]}  Rd7 {[%clk 0:00:17]} 31. Nc5 {[%clk 0:00:56]} 1-0


[Site "https://www.chess.com"]

[Event "Titled Tuesday Blitz May 10 Early 2022"]
[White "Jumabayev, Rinat"]
[Black "Janaszak, Dawid"]
[WhiteFideId "13702661"]
[BlackFideId "1119206"]
[WhiteElo "2561"]
[BlackElo "2199"]
[Result "1-0"]
[Round "07"]
[TimeControl "180+1"]
[Date "2022.05.10"]
[WhiteClock "0:00:58"]
[BlackClock "0:00:14"]

1. e4 {[%clk 0:03:00]}  c5 {[%clk 0:02:59]} 2. Nf3 {[%clk 0:03:01]}  Nc6 {[%clk 0:03:00]} 3. Bb5 {[%clk 0:02:59]}  Nf6 {[%clk 0:02:57]} 4. Nc3 {[%clk 0:02:47]}  Qc7 {[%clk 0:02:54]} 5. O-O {[%clk 0:02:41]}  g6 {[%clk 0:02:47]} 6. Re1 {[%clk 0:02:38]}  Bg7 {[%clk 0:02:35]} 7. d4 {[%clk 0:02:08]}  Nxd4 {[%clk 0:02:21]} 8. e5 {[%clk 0:01:55]}  Ng4 {[%clk 0:01:41]} 9. Nd5 {[%clk 0:01:46]}  Nxf3+ {[%clk 0:01:02]} 10. Qxf3 {[%clk 0:01:45]}  Qa5 {[%clk 0:01:02]} 11. b4 {[%clk 0:01:43]}  cxb4 {[%clk 0:00:37]} 12. Qxg4 {[%clk 0:01:36]}  O-O {[%clk 0:00:34]} 13. Qxb4 {[%clk 0:01:17]}  Qd8 {[%clk 0:00:19]} 14. Nxe7+ {[%clk 0:01:14]}  Kh8 {[%clk 0:00:19]} 15. Bg5 {[%clk 0:01:14]}  Qb6 {[%clk 0:00:16]} 16. Bf6 {[%clk 0:01:02]}  a6 {[%clk 0:00:14]} 17. Nxg6+ {[%clk 0:00:58]} 1-0


[Site "https://www.chess.com"]

[Event "Titled Tuesday Blitz May 10 Early 2022"]
[White "Karolczuk, Iwo"]
[Black "Kadric, Denis"]
[WhiteFideId "21816972"]
[BlackFideId "14403803"]
[WhiteElo "2258"]
[BlackElo "2657"]
[Result "0-1"]
[Round "07"]
[TimeControl "180+1"]
[Date "2022.05.10"]
[WhiteClock "0:00:05"]
[BlackClock "0:00:24"]

1. e4 {[%clk 0:03:00]}  e6 {[%clk 0:02:55]} 2. d4 {[%clk 0:02:51]}  d5 {[%clk 0:02:55]} 3. Nc3 {[%clk 0:02:51]}  Nf6 {[%clk 0:02:55]} 4. Qd3 {[%clk 0:02:43]}  c5 {[%clk 0:02:52]} 5. dxc5 {[%clk 0:02:40]}  d4 {[%clk 0:02:48]} 6. e5 {[%clk 0:02:29]}  dxc3 {[%clk 0:02:42]} 7. Qxd8+ {[%clk 0:02:22]}  Kxd8 {[%clk 0:02:43]} 8. exf6 {[%clk 0:02:23]}  gxf6 {[%clk 0:02:44]} 9. Ne2 {[%clk 0:01:47]}  cxb2 {[%clk 0:02:17]} 10. Bxb2 {[%clk 0:01:48]}  Nd7 {[%clk 0:02:18]} 11. O-O-O {[%clk 0:01:43]}  Kc7 {[%clk 0:02:04]} 12. Nc3 {[%clk 0:01:39]}  Bxc5 {[%clk 0:01:59]} 13. Ne4 {[%clk 0:01:18]}  Be7 {[%clk 0:01:57]} 14. Bb5 {[%clk 0:01:08]}  Rg8 {[%clk 0:01:42]} 15. Bxd7 {[%clk 0:00:52]}  Bxd7 {[%clk 0:01:42]} 16. Nxf6 {[%clk 0:00:52]}  Bxf6 {[%clk 0:01:41]} 17. Bxf6 {[%clk 0:00:53]}  Rxg2 {[%clk 0:01:35]} 18. Be5+ {[%clk 0:00:53]}  Kc8 {[%clk 0:01:36]} 19. Rhg1 {[%clk 0:00:37]}  Rg6 {[%clk 0:01:35]} 20. h4 {[%clk 0:00:27]}  h5 {[%clk 0:01:06]} 21. Rxg6 {[%clk 0:00:15]}  fxg6 {[%clk 0:01:07]} 22. Rd3 {[%clk 0:00:14]}  a5 {[%clk 0:00:53]} 23. Rg3 {[%clk 0:00:13]}  Be8 {[%clk 0:00:53]} 24. Rc3+ {[%clk 0:00:14]}  Bc6 {[%clk 0:00:53]} 25. Rg3 {[%clk 0:00:13]}  Be4 {[%clk 0:00:51]} 26. Rc3+ {[%clk 0:00:12]}  Kd8 {[%clk 0:00:46]} 27. a3 {[%clk 0:00:06]}  Ra6 {[%clk 0:00:37]} 28. Bf6+ {[%clk 0:00:06]}  Ke8 {[%clk 0:00:36]} 29. Rc8+ {[%clk 0:00:06]}  Kd7 {[%clk 0:00:34]} 30. Rd8+ {[%clk 0:00:06]}  Kc7 {[%clk 0:00:34]} 31. Rd4 {[%clk 0:00:06]}  Bf5 {[%clk 0:00:25]} 32. Be5+ {[%clk 0:00:06]}  Kc8 {[%clk 0:00:25]} 33. Rc4+ {[%clk 0:00:06]}  Kd8 {[%clk 0:00:24]} 34. Rd4+ {[%clk 0:00:07]}  Ke8 {[%clk 0:00:23]} 35. Rc4 {[%clk 0:00:07]}  Rb6 {[%clk 0:00:22]} 36. Rc8+ {[%clk 0:00:07]}  Kd7 {[%clk 0:00:20]} 37. Rc7+ {[%clk 0:00:07]}  Kd8 {[%clk 0:00:21]} 38. Rc5 {[%clk 0:00:06]}  Ra6 {[%clk 0:00:20]} 39. Bc7+ {[%clk 0:00:06]}  Kd7 {[%clk 0:00:21]} 40. Be5 {[%clk 0:00:04]}  Rc6 {[%clk 0:00:20]} 41. Rxc6 {[%clk 0:00:04]}  Kxc6 {[%clk 0:00:21]} 42. Kd2 {[%clk 0:00:04]}  Kd5 {[%clk 0:00:22]} 43. Bf6 {[%clk 0:00:04]}  Ke4 {[%clk 0:00:22]} 44. Bd8 {[%clk 0:00:04]}  a4 {[%clk 0:00:22]} 45. Bg5 {[%clk 0:00:04]}  Kf3 {[%clk 0:00:22]} 46. Be3 {[%clk 0:00:03]}  g5 {[%clk 0:00:21]} 47. Bxg5 {[%clk 0:00:03]}  Kxf2 {[%clk 0:00:22]} 48. Bf6 {[%clk 0:00:02]}  Kf3 {[%clk 0:00:22]} 49. c4 {[%clk 0:00:02]}  Kf4 {[%clk 0:00:21]} 50. Ke2 {[%clk 0:00:02]}  e5 {[%clk 0:00:22]} 51. Bg5+ {[%clk 0:00:02]}  Kg3 {[%clk 0:00:21]} 52. c5 {[%clk 0:00:03]}  Be6 {[%clk 0:00:20]} 53. Ke3 {[%clk 0:00:03]}  Bd5 {[%clk 0:00:20]} 54. Bf6 {[%clk 0:00:03]}  e4 {[%clk 0:00:19]} 55. Bg5 {[%clk 0:00:04]}  Kg4 {[%clk 0:00:20]} 56. Bf6 {[%clk 0:00:04]}  Bc6 {[%clk 0:00:20]} 57. Bg5 {[%clk 0:00:05]}  Kf5 {[%clk 0:00:21]} 58. Kd4 {[%clk 0:00:04]}  Ke6 {[%clk 0:00:21]} 59. Ke3 {[%clk 0:00:05]}  Ke5 {[%clk 0:00:22]} 60. Be7 {[%clk 0:00:05]}  Kd5 {[%clk 0:00:22]} 61. Bf8 {[%clk 0:00:05]}  Kc4 {[%clk 0:00:23]} 62. Bg7 {[%clk 0:00:05]}  Kb3 {[%clk 0:00:24]} 0-1


[Site "https://www.chess.com"]

[Event "Titled Tuesday Blitz May 10 Early 2022"]
[White "Khubukshanov, Erdem"]
[Black "Mitrabha, Guha"]
[WhiteFideId "54114527"]
[BlackFideId "5057000"]
[WhiteElo "2306"]
[BlackElo "2468"]
[Result "0-1"]
[Round "07"]
[TimeControl "180+1"]
[Date "2022.05.10"]
[WhiteClock "0:00:01"]
[BlackClock "0:01:07"]

1. e4 {[%clk 0:03:00]}  e5 {[%clk 0:02:59]} 2. Nf3 {[%clk 0:03:00]}  Nc6 {[%clk 0:03:00]} 3. Nc3 {[%clk 0:02:53]}  Nf6 {[%clk 0:02:57]} 4. a3 {[%clk 0:02:53]}  d5 {[%clk 0:02:56]} 5. exd5 {[%clk 0:02:54]}  Nxd5 {[%clk 0:02:56]} 6. Nxe5 {[%clk 0:02:54]}  Nxc3 {[%clk 0:02:42]} 7. Nxc6 {[%clk 0:02:42]}  Nxd1 {[%clk 0:02:39]} 8. Nxd8 {[%clk 0:02:38]}  Nxf2 {[%clk 0:02:39]} 9. Kxf2 {[%clk 0:02:03]}  Bc5+ {[%clk 0:02:23]} 10. Kf3 {[%clk 0:01:41]}  Kxd8 {[%clk 0:02:22]} 11. Bc4 {[%clk 0:01:41]}  Bd7 {[%clk 0:02:19]} 12. d4 {[%clk 0:01:32]}  Bxd4 {[%clk 0:02:13]} 13. Rd1 {[%clk 0:01:32]}  Bf6 {[%clk 0:02:13]} 14. Bxf7 {[%clk 0:01:28]}  Ke7 {[%clk 0:02:03]} 15. Bd5 {[%clk 0:01:26]}  Raf8 {[%clk 0:01:57]} 16. Ke4 {[%clk 0:00:59]}  c6 {[%clk 0:01:48]} 17. Bc4 {[%clk 0:00:55]}  Re8 {[%clk 0:01:48]} 18. Bf4 {[%clk 0:00:39]}  Bg4 {[%clk 0:01:48]} 19. Rd6 {[%clk 0:00:35]}  Kf8+ {[%clk 0:01:33]} 20. Kd3 {[%clk 0:00:34]}  Bf5+ {[%clk 0:01:34]} 21. Kd2 {[%clk 0:00:33]}  Re4 {[%clk 0:01:34]} 22. Rxf6+ {[%clk 0:00:11]}  gxf6 {[%clk 0:01:34]} 23. Bh6+ {[%clk 0:00:05]}  Ke8 {[%clk 0:01:30]} 24. Kc3 {[%clk 0:00:04]}  Be6 {[%clk 0:01:26]} 25. Bd3 {[%clk 0:00:03]}  Re5 {[%clk 0:01:25]} 26. Bg7 {[%clk 0:00:03]}  Rg8 {[%clk 0:01:22]} 27. Bxf6 {[%clk 0:00:04]}  Rc5+ {[%clk 0:01:23]} 28. Kb4 {[%clk 0:00:04]}  Rh5 {[%clk 0:01:20]} 29. g3 {[%clk 0:00:03]}  Rxh2 {[%clk 0:01:20]} 30. Re1 {[%clk 0:00:02]}  Kf7 {[%clk 0:01:15]} 31. Be5 {[%clk 0:00:03]}  Rg4+ {[%clk 0:01:12]} 32. Kc5 {[%clk 0:00:03]}  Ke7 {[%clk 0:01:09]} 33. b4 {[%clk 0:00:03]}  Kd7 {[%clk 0:01:08]} 34. Be4 {[%clk 0:00:01]}  Rd2 {[%clk 0:01:07]} 35. c4 {[%clk 0:00:01]}  b6# {[%clk 0:01:07]} 0-1


[Site "https://www.chess.com"]

[Event "Titled Tuesday Blitz May 10 Early 2022"]
[White "Kruckenhauser, Arthur"]
[Black "Azarov, Sergei"]
[WhiteFideId "1642812"]
[BlackFideId "13501470"]
[WhiteElo "2243"]
[BlackElo "2494"]
[Result "0-1"]
[Round "07"]
[TimeControl "180+1"]
[Date "2022.05.11"]
[WhiteClock "0:00:11"]
[BlackClock "0:00:24"]

1. d4 {[%clk 0:02:58]}  f5 {[%clk 0:02:59]} 2. c4 {[%clk 0:02:55]}  Nf6 {[%clk 0:02:58]} 3. Nc3 {[%clk 0:02:52]}  e6 {[%clk 0:02:58]} 4. g3 {[%clk 0:02:50]}  Bb4 {[%clk 0:02:58]} 5. Bd2 {[%clk 0:02:51]}  Bxc3 {[%clk 0:02:48]} 6. Bxc3 {[%clk 0:02:50]}  Ne4 {[%clk 0:02:49]} 7. Rc1 {[%clk 0:02:40]}  O-O {[%clk 0:02:46]} 8. Bg2 {[%clk 0:02:37]}  Nxc3 {[%clk 0:02:46]} 9. Rxc3 {[%clk 0:02:38]}  d6 {[%clk 0:02:45]} 10. Nf3 {[%clk 0:02:37]}  Nd7 {[%clk 0:02:41]} 11. Re3 {[%clk 0:02:28]}  Nf6 {[%clk 0:02:34]} 12. O-O {[%clk 0:02:24]}  Bd7 {[%clk 0:02:26]} 13. Ne1 {[%clk 0:01:54]}  f4 {[%clk 0:02:05]} 14. Rc3 {[%clk 0:01:46]}  fxg3 {[%clk 0:02:00]} 15. hxg3 {[%clk 0:01:42]}  Rb8 {[%clk 0:01:35]} 16. Nd3 {[%clk 0:01:09]}  Qe7 {[%clk 0:01:30]} 17. Nf4 {[%clk 0:01:03]}  c6 {[%clk 0:01:24]} 18. Ra3 {[%clk 0:00:49]}  a6 {[%clk 0:01:19]} 19. Qd2 {[%clk 0:00:47]}  Rbe8 {[%clk 0:01:17]} 20. Rb3 {[%clk 0:00:45]}  Bc8 {[%clk 0:01:15]} 21. Qa5 {[%clk 0:00:43]}  e5 {[%clk 0:01:13]} 22. dxe5 {[%clk 0:00:42]}  dxe5 {[%clk 0:01:13]} 23. Nd3 {[%clk 0:00:40]}  Ng4 {[%clk 0:01:05]} 24. Be4 {[%clk 0:00:20]}  Qg5 {[%clk 0:00:55]} 25. Kg2 {[%clk 0:00:19]}  Bf5 {[%clk 0:00:47]} 26. Bxf5 {[%clk 0:00:18]}  Qxf5 {[%clk 0:00:34]} 27. Rxb7 {[%clk 0:00:13]}  Ne3+ {[%clk 0:00:31]} 28. Kg1 {[%clk 0:00:13]}  Qh3 {[%clk 0:00:25]} 29. fxe3 {[%clk 0:00:11]}  Qxg3+ {[%clk 0:00:24]} 30. Kh1 {[%clk 0:00:11]}  Rxf1# {[%clk 0:00:24]} 0-1


[Site "https://www.chess.com"]

[Event "Titled Tuesday Blitz May 10 Early 2022"]
[White "Kwon, Sehyun"]
[Black "Cunjalo, Faris"]
[WhiteFideId "13203088"]
[BlackFideId "14410710"]
[WhiteElo "1778"]
[BlackElo "2263"]
[Result "0-1"]
[Round "07"]
[TimeControl "180+1"]
[Date "2022.05.10"]
[WhiteClock "0:00:01"]
[BlackClock "0:00:20"]

1. e4 {[%clk 0:03:00]}  c6 {[%clk 0:02:55]} 2. c4 {[%clk 0:03:00]}  d5 {[%clk 0:02:56]} 3. cxd5 {[%clk 0:03:01]}  cxd5 {[%clk 0:02:56]} 4. exd5 {[%clk 0:03:02]}  Nf6 {[%clk 0:02:55]} 5. Qa4+ {[%clk 0:03:03]}  Nbd7 {[%clk 0:02:54]} 6. Nc3 {[%clk 0:03:03]}  g6 {[%clk 0:02:53]} 7. Nf3 {[%clk 0:03:03]}  Bg7 {[%clk 0:02:54]} 8. Bc4 {[%clk 0:03:03]}  a6 {[%clk 0:02:53]} 9. d4 {[%clk 0:02:36]}  O-O {[%clk 0:02:52]} 10. Qa3 {[%clk 0:02:29]}  Nb6 {[%clk 0:02:47]} 11. Bb3 {[%clk 0:02:28]}  Nbxd5 {[%clk 0:02:46]} 12. O-O {[%clk 0:02:29]}  b6 {[%clk 0:02:25]} 13. Re1 {[%clk 0:02:04]}  Bb7 {[%clk 0:02:14]} 14. Ne5 {[%clk 0:02:03]}  b5 {[%clk 0:02:03]} 15. Nxd5 {[%clk 0:01:30]}  Nxd5 {[%clk 0:02:03]} 16. Bd2 {[%clk 0:01:21]}  e6 {[%clk 0:01:57]} 17. Rac1 {[%clk 0:01:05]}  Re8 {[%clk 0:01:50]} 18. Nc6 {[%clk 0:00:32]}  Bxc6 {[%clk 0:01:39]} 19. Rxc6 {[%clk 0:00:33]}  Bxd4 {[%clk 0:01:40]} 20. Rxa6 {[%clk 0:00:27]}  Rc8 {[%clk 0:00:51]} 21. Bxd5 {[%clk 0:00:27]}  exd5 {[%clk 0:00:42]} 22. Be3 {[%clk 0:00:07]}  Bxe3 {[%clk 0:00:34]} 23. fxe3 {[%clk 0:00:08]}  d4 {[%clk 0:00:35]} 24. Rd6 {[%clk 0:00:06]}  Qh4 {[%clk 0:00:35]} 25. g3 {[%clk 0:00:04]}  Qh3 {[%clk 0:00:21]} 26. Rxd4 {[%clk 0:00:01]}  Rc2 {[%clk 0:00:20]} 0-1


[Site "https://www.chess.com"]

[Event "Titled Tuesday Blitz May 10 Early 2022"]
[White "Lashkin, Jegor"]
[Black "Dronavalli, Harika"]
[WhiteFideId "13907808"]
[BlackFideId "5015197"]
[WhiteElo "2368"]
[BlackElo "2382"]
[Result "1-0"]
[Round "07"]
[TimeControl "180+1"]
[Date "2022.05.10"]
[WhiteClock "0:00:25"]
[BlackClock "0:00:13"]

1. Nf3 {[%clk 0:03:00]}  Nf6 {[%clk 0:02:59]} 2. b3 {[%clk 0:03:00]}  g6 {[%clk 0:02:59]} 3. Bb2 {[%clk 0:03:00]}  Bg7 {[%clk 0:03:00]} 4. e3 {[%clk 0:03:01]}  O-O {[%clk 0:03:00]} 5. d4 {[%clk 0:03:02]}  c5 {[%clk 0:02:54]} 6. dxc5 {[%clk 0:03:01]}  Qa5+ {[%clk 0:02:51]} 7. c3 {[%clk 0:03:02]}  Qxc5 {[%clk 0:02:52]} 8. Ba3 {[%clk 0:03:02]}  Qb6 {[%clk 0:02:41]} 9. Bxe7 {[%clk 0:03:02]}  Re8 {[%clk 0:02:42]} 10. Bxf6 {[%clk 0:03:03]}  Bxf6 {[%clk 0:02:39]} 11. Be2 {[%clk 0:03:03]}  d6 {[%clk 0:02:28]} 12. O-O {[%clk 0:03:03]}  Bg4 {[%clk 0:02:28]} 13. Qd2 {[%clk 0:02:50]}  Bxf3 {[%clk 0:02:08]} 14. Bxf3 {[%clk 0:02:50]}  Rc8 {[%clk 0:02:08]} 15. Rc1 {[%clk 0:02:48]}  Nd7 {[%clk 0:02:00]} 16. Na3 {[%clk 0:02:46]}  Ne5 {[%clk 0:02:00]} 17. Bd5 {[%clk 0:02:45]}  Qc5 {[%clk 0:01:47]} 18. b4 {[%clk 0:02:41]}  Qb6 {[%clk 0:01:44]} 19. Rab1 {[%clk 0:02:28]}  Qa6 {[%clk 0:01:03]} 20. Rb3 {[%clk 0:02:28]}  Rab8 {[%clk 0:00:53]} 21. c4 {[%clk 0:02:23]}  Qb6 {[%clk 0:00:53]} 22. h3 {[%clk 0:02:16]}  h5 {[%clk 0:00:53]} 23. Nb5 {[%clk 0:02:14]}  a6 {[%clk 0:00:50]} 24. Nd4 {[%clk 0:02:14]}  Kg7 {[%clk 0:00:50]} 25. Ne2 {[%clk 0:02:12]}  Qd8 {[%clk 0:00:49]} 26. a4 {[%clk 0:02:05]}  b6 {[%clk 0:00:46]} 27. Rbb1 {[%clk 0:02:03]}  h4 {[%clk 0:00:43]} 28. Nf4 {[%clk 0:02:01]}  a5 {[%clk 0:00:43]} 29. bxa5 {[%clk 0:01:52]}  bxa5 {[%clk 0:00:43]} 30. Rb5 {[%clk 0:01:53]}  Rc5 {[%clk 0:00:39]} 31. Qe2 {[%clk 0:01:27]}  Rbc8 {[%clk 0:00:39]} 32. Rb7 {[%clk 0:01:23]}  R8c7 {[%clk 0:00:39]} 33. Rcb1 {[%clk 0:01:17]}  Qd7 {[%clk 0:00:38]} 34. Rxc7 {[%clk 0:01:12]}  Rxc7 {[%clk 0:00:38]} 35. Rb5 {[%clk 0:01:11]}  Rc5 {[%clk 0:00:38]} 36. Qc2 {[%clk 0:01:07]}  Qc8 {[%clk 0:00:36]} 37. Qb3 {[%clk 0:01:04]}  Rc7 {[%clk 0:00:29]} 38. Rxa5 {[%clk 0:01:00]}  Qd7 {[%clk 0:00:21]} 39. Ra8 {[%clk 0:00:57]}  Ra7 {[%clk 0:00:21]} 40. Qb5 {[%clk 0:00:48]}  Qc7 {[%clk 0:00:18]} 41. Rxa7 {[%clk 0:00:46]}  Qxa7 {[%clk 0:00:18]} 42. a5 {[%clk 0:00:46]}  Bd8 {[%clk 0:00:17]} 43. a6 {[%clk 0:00:46]}  Bb6 {[%clk 0:00:18]} 44. c5 {[%clk 0:00:29]}  Bxc5 {[%clk 0:00:18]} 45. Qe2 {[%clk 0:00:30]}  Bb6 {[%clk 0:00:15]} 46. Bb7 {[%clk 0:00:30]}  Bc5 {[%clk 0:00:15]} 47. Qb2 {[%clk 0:00:30]}  Qb6 {[%clk 0:00:15]} 48. Qa1 {[%clk 0:00:29]}  Qa7 {[%clk 0:00:15]} 49. Nd5 {[%clk 0:00:29]}  Kh6 {[%clk 0:00:13]} 50. Kh1 {[%clk 0:00:27]}  f5 {[%clk 0:00:13]} 51. f4 {[%clk 0:00:27]}  Bxe3 {[%clk 0:00:13]} 52. fxe5 {[%clk 0:00:27]}  Bd4 {[%clk 0:00:14]} 53. Qc1+ {[%clk 0:00:27]}  Kg7 {[%clk 0:00:14]} 54. exd6 {[%clk 0:00:27]}  Bf6 {[%clk 0:00:13]} 55. Nxf6 {[%clk 0:00:26]}  Kxf6 {[%clk 0:00:13]} 56. Qe1 {[%clk 0:00:25]}  Qd4 {[%clk 0:00:13]} 57. Qe7# {[%clk 0:00:25]} 1-0


[Site "https://www.chess.com"]

[Event "Titled Tuesday Blitz May 10 Early 2022"]
[White "Lauridsen, Jesper Morch"]
[Black "Mica, Marek"]
[WhiteFideId "1401890"]
[BlackFideId "382884"]
[WhiteElo "2222"]
[BlackElo "2100"]
[Result "0-1"]
[Round "07"]
[TimeControl "180+1"]
[Date "2022.05.11"]
[WhiteClock "0:00:05"]
[BlackClock "0:00:34"]

1. e4 {[%clk 0:03:00]}  e6 {[%clk 0:02:59]} 2. d4 {[%clk 0:02:59]}  d5 {[%clk 0:02:59]} 3. Nc3 {[%clk 0:02:58]}  Nf6 {[%clk 0:02:50]} 4. Bg5 {[%clk 0:02:53]}  Bb4 {[%clk 0:02:49]} 5. e5 {[%clk 0:02:46]}  h6 {[%clk 0:02:49]} 6. Bd2 {[%clk 0:02:44]}  Bxc3 {[%clk 0:02:46]} 7. bxc3 {[%clk 0:02:44]}  Ne4 {[%clk 0:02:46]} 8. Bd3 {[%clk 0:02:43]}  Nxd2 {[%clk 0:02:37]} 9. Kxd2 {[%clk 0:02:41]}  c5 {[%clk 0:02:38]} 10. Qg4 {[%clk 0:02:38]}  Kf8 {[%clk 0:02:38]} 11. h4 {[%clk 0:02:36]}  Nc6 {[%clk 0:02:35]} 12. Nf3 {[%clk 0:02:34]}  c4 {[%clk 0:02:34]} 13. Be2 {[%clk 0:02:33]}  b5 {[%clk 0:02:28]} 14. a3 {[%clk 0:02:30]}  a5 {[%clk 0:02:24]} 15. h5 {[%clk 0:02:27]}  Bd7 {[%clk 0:02:22]} 16. Rh3 {[%clk 0:02:25]}  Qe7 {[%clk 0:02:18]} 17. Rg3 {[%clk 0:02:25]}  Rg8 {[%clk 0:02:13]} 18. Nh4 {[%clk 0:02:22]}  Rb8 {[%clk 0:02:08]} 19. f4 {[%clk 0:01:16]}  b4 {[%clk 0:01:50]} 20. axb4 {[%clk 0:01:15]}  axb4 {[%clk 0:01:51]} 21. f5 {[%clk 0:01:03]}  bxc3+ {[%clk 0:01:50]} 22. Ke3 {[%clk 0:00:59]}  exf5 {[%clk 0:01:32]} 23. Nxf5 {[%clk 0:00:57]}  Nxe5 {[%clk 0:01:21]} 24. Nxe7 {[%clk 0:00:35]}  Nxg4+ {[%clk 0:01:20]} 25. Bxg4 {[%clk 0:00:30]}  Kxe7 {[%clk 0:01:20]} 26. Ra7 {[%clk 0:00:29]}  Rbd8 {[%clk 0:01:19]} 27. Kf4 {[%clk 0:00:26]}  Kd6 {[%clk 0:01:19]} 28. Bxd7 {[%clk 0:00:21]}  Rxd7 {[%clk 0:01:20]} 29. Ra6+ {[%clk 0:00:20]}  Kc7 {[%clk 0:01:17]} 30. Rxh6 {[%clk 0:00:20]}  Re8 {[%clk 0:00:56]} 31. Rxg7 {[%clk 0:00:18]}  Re4+ {[%clk 0:00:57]} 32. Kf3 {[%clk 0:00:17]}  Rxd4 {[%clk 0:00:57]} 33. Rf6 {[%clk 0:00:17]}  Rd1 {[%clk 0:00:56]} 34. Kf2 {[%clk 0:00:15]}  d4 {[%clk 0:00:51]} 35. h6 {[%clk 0:00:14]}  d3 {[%clk 0:00:49]} 36. h7 {[%clk 0:00:13]}  Rh1 {[%clk 0:00:48]} 37. Rfxf7 {[%clk 0:00:10]}  Rxf7+ {[%clk 0:00:46]} 38. Rxf7+ {[%clk 0:00:11]}  Kc6 {[%clk 0:00:45]} 39. Rf6+ {[%clk 0:00:10]}  Kb5 {[%clk 0:00:45]} 40. cxd3 {[%clk 0:00:09]}  cxd3 {[%clk 0:00:43]} 41. Rf5+ {[%clk 0:00:10]}  Kc4 {[%clk 0:00:41]} 42. Rf4+ {[%clk 0:00:09]}  Kb3 {[%clk 0:00:40]} 43. Rf3 {[%clk 0:00:09]}  d2 {[%clk 0:00:40]} 44. Rd3 {[%clk 0:00:07]}  Rxh7 {[%clk 0:00:35]} 45. g4 {[%clk 0:00:05]}  Kc2 {[%clk 0:00:34]} 0-1


[Site "https://www.chess.com"]

[Event "Titled Tuesday Blitz May 10 Early 2022"]
[White "Lomaia, Diana"]
[Black "Van den Dikkenberg, Erik"]
[WhiteFideId "13612476"]
[BlackFideId "1005880"]
[WhiteElo "1744"]
[BlackElo "2118"]
[Result "1-0"]
[Round "07"]
[TimeControl "180+1"]
[Date "2022.05.11"]
[WhiteClock "0:02:34"]
[BlackClock "0:01:35"]

1. d4 {[%clk 0:03:00]}  Nf6 {[%clk 0:02:59]} 2. c4 {[%clk 0:03:01]}  g6 {[%clk 0:02:59]} 3. Nc3 {[%clk 0:03:00]}  Bg7 {[%clk 0:02:59]} 4. g3 {[%clk 0:03:01]}  O-O {[%clk 0:02:58]} 5. Bg2 {[%clk 0:03:02]}  d6 {[%clk 0:02:58]} 6. Nf3 {[%clk 0:03:02]}  c6 {[%clk 0:02:59]} 7. O-O {[%clk 0:03:03]}  Qa5 {[%clk 0:02:59]} 8. e4 {[%clk 0:03:01]}  Bg4 {[%clk 0:02:56]} 9. h3 {[%clk 0:03:00]}  Bxf3 {[%clk 0:02:55]} 10. Bxf3 {[%clk 0:03:01]}  e5 {[%clk 0:02:55]} 11. d5 {[%clk 0:03:00]}  Rd8 {[%clk 0:02:37]} 12. a3 {[%clk 0:02:58]}  Na6 {[%clk 0:02:36]} 13. Be3 {[%clk 0:02:54]}  cxd5 {[%clk 0:02:25]} 14. cxd5 {[%clk 0:02:41]}  Qc7 {[%clk 0:01:54]} 15. Rc1 {[%clk 0:02:40]}  Qe7 {[%clk 0:01:51]} 16. b4 {[%clk 0:02:39]}  b6 {[%clk 0:01:50]} 17. Nb5 {[%clk 0:02:38]}  Rac8 {[%clk 0:01:44]} 18. Qd2 {[%clk 0:02:35]}  Nc7 {[%clk 0:01:43]} 19. Nxa7 {[%clk 0:02:34]}  Ra8 {[%clk 0:01:40]} 20. Nc6 {[%clk 0:02:34]}  Qd7 {[%clk 0:01:36]} 21. Nxd8 {[%clk 0:02:34]}  Qxd8 {[%clk 0:01:35]} 22. Bxb6 {[%clk 0:02:34]} 1-0


[Site "https://www.chess.com"]